[Event "*** Titled Tuesday 3|2 Blitz"]
[Site "Chess.com"]
[Date "2016.05.03"]
[Round "2"]
[White "Makalexa"]
[Black "cool64chess"]
[Result "0-1"]
[WhiteElo "2088"]
[BlackElo "2200"]
[TimeControl "180+2"]
[EndTime "11:22:22 PDT"]
[Termination "cool64chess won by resignation"]

1. e4 {[%clk 0:03:01.9]} 1... e6 {[%clk 0:02:56]} 2. Qe2 {[%clk 0:02:57.5]} 2...
c5 {[%clk 0:02:54.5]} 3. d3 {[%clk 0:02:57.2]} 3... Nc6 {[%clk 0:02:45.8]} 4. c3
{[%clk 0:02:52.8]} 4... d6 {[%clk 0:02:38.9]} 5. g3 {[%clk 0:02:53.4]} 5... Nf6
{[%clk 0:02:36.5]} 6. Bg2 {[%clk 0:02:53.6]} 6... Be7 {[%clk 0:02:33.4]} 7. f4
{[%clk 0:02:50.8]} 7... O-O {[%clk 0:02:34]} 8. Nf3 {[%clk 0:02:51.8]} 8... b6
{[%clk 0:02:33.7]} 9. O-O {[%clk 0:02:52.3]} 9... Bb7 {[%clk 0:02:28.6]} 10.
Nbd2 {[%clk 0:02:52.5]} 10... Re8 {[%clk 0:02:27.1]} 11. Ng5 {[%clk 0:02:53.1]}
11... h6 {[%clk 0:02:27]} 12. e5 {[%clk 0:02:40.7]} 12... dxe5 {[%clk
0:02:00.3]} 13. fxe5 {[%clk 0:02:02.3]} 13... hxg5 {[%clk 0:01:59.6]} 14. exf6
{[%clk 0:02:01.8]} 14... Bxf6 {[%clk 0:01:59.8]} 15. Ne4 {[%clk 0:02:03.1]}
15... Be7 {[%clk 0:01:53.2]} 16. Qh5 {[%clk 0:01:48.3]} 16... Ne5 {[%clk
0:01:12.2]} 17. Nxg5 {[%clk 0:01:36.5]} 17... Bxg5 {[%clk 0:01:08.3]} 18. Bxg5
{[%clk 0:01:35.3]} 18... Qd7 {[%clk 0:01:04.7]} 19. Rf4 {[%clk 0:01:03.8]} 19...
Bxg2 {[%clk 0:00:52.7]} 20. Kxg2 {[%clk 0:00:47.2]} 20... Qxd3 {[%clk
0:00:36.7]} 21. Rh4 {[%clk 0:00:35]} 21... f6 {[%clk 0:00:19.2]} 22. Rf1 {[%clk
0:00:26.2]} 22... Qg6 {[%clk 0:00:15.7]} 23. Qh8+ {[%clk 0:00:20.2]} 23... Kf7
{[%clk 0:00:16.2]} 24. Rxf6+ {[%clk 0:00:20.5]} 24... Qxf6 {[%clk 0:00:15.7]}
25. Bxf6 {[%clk 0:00:09.6]} 25... Rxh8 {[%clk 0:00:14.2]} 26. Rxh8 {[%clk
0:00:11.2]} 26... Rxh8 {[%clk 0:00:14.7]} 27. Bxe5 {[%clk 0:00:12.9]} 27... Rd8
{[%clk 0:00:16.2]} 28. Bf4 {[%clk 0:00:12.2]} 28... Rd1 {[%clk 0:00:16.7]} 29.
a3 {[%clk 0:00:11.9]} 29... Rb1 {[%clk 0:00:17.6]} 30. b4 {[%clk 0:00:13]} 30...
Rb3 {[%clk 0:00:18.7]} 31. bxc5 {[%clk 0:00:13.7]} 31... bxc5 {[%clk 0:00:20.6]}
32. Bd6 {[%clk 0:00:13.6]} 32... Rxc3 {[%clk 0:00:17.2]} 33. a4 {[%clk
0:00:13.6]} 33... a5 {[%clk 0:00:17]} 34. Bc7 {[%clk 0:00:13.1]} 34... Rc4
{[%clk 0:00:18.4]} 35. Bxa5 {[%clk 0:00:13.2]} 35... Rxa4 {[%clk 0:00:20]} 36.
Bc3 {[%clk 0:00:14.4]} 36... Ra3 {[%clk 0:00:21]} 37. Be1 {[%clk 0:00:13.4]}
37... c4 {[%clk 0:00:21.9]} 38. Kf2 {[%clk 0:00:14.7]} 38... Ra2+ {[%clk
0:00:23.1]} 39. Kf3 {[%clk 0:00:12.2]} 39... Rxh2 {[%clk 0:00:23.8]} 40. Ke4
{[%clk 0:00:12.9]} 40... Re2+ {[%clk 0:00:24.6]} 0-1

[Event "*** Titled Tuesday 3|2 Blitz"]
[Site "Chess.com"]
[Date "2016.05.03"]
[Round "2"]
[White "Usurpov"]
[Black "kikydu96"]
[Result "0-1"]
[WhiteElo "2336"]
[BlackElo "2293"]
[TimeControl "180+2"]
[EndTime "11:22:25 PDT"]
[Termination "kikydu96 won by resignation"]

1. e4 {[%clk 0:03:01.9]} 1... e5 {[%clk 0:02:53.5]} 2. Nf3 {[%clk 0:03:02.3]}
2... Nc6 {[%clk 0:02:54.3]} 3. Nc3 {[%clk 0:03:03.2]} 3... Nf6 {[%clk
0:02:55.2]} 4. d4 {[%clk 0:03:02.9]} 4... exd4 {[%clk 0:02:55.9]} 5. Nxd4 {[%clk
0:03:03.4]} 5... Bb4 {[%clk 0:02:57.6]} 6. Nxc6 {[%clk 0:03:03.9]} 6... bxc6
{[%clk 0:02:59.5]} 7. Bd3 {[%clk 0:03:05.1]} 7... d5 {[%clk 0:03:00.1]} 8. exd5
{[%clk 0:03:01]} 8... O-O {[%clk 0:03:01.5]} 9. O-O {[%clk 0:03:01.6]} 9... cxd5
{[%clk 0:03:02.9]} 10. Qf3 {[%clk 0:03:02.4]} 10... c6 {[%clk 0:03:01]} 11. h3
{[%clk 0:03:02.5]} 11... Bd6 {[%clk 0:03:00.4]} 12. Bf4 {[%clk 0:03:02.2]} 12...
Rb8 {[%clk 0:02:59.5]} 13. b3 {[%clk 0:03:02.9]} 13... Re8 {[%clk 0:02:57.5]}
14. Rfe1 {[%clk 0:02:56.7]} 14... Be6 {[%clk 0:02:56.8]} 15. Na4 {[%clk
0:02:43.4]} 15... Rb4 {[%clk 0:02:56.4]} 16. Bxd6 {[%clk 0:02:43.5]} 16... Qxd6
{[%clk 0:02:56.6]} 17. Qg3 {[%clk 0:02:43.9]} 17... Qxg3 {[%clk 0:02:43]} 18.
fxg3 {[%clk 0:02:44.5]} 18... Ne4 {[%clk 0:02:38.9]} 19. c3 {[%clk 0:02:33.2]}
19... Rxa4 {[%clk 0:02:36.2]} 20. bxa4 {[%clk 0:02:32.6]} 20... Nxc3 {[%clk
0:02:36.5]} 21. Rac1 {[%clk 0:02:09]} 21... d4 {[%clk 0:02:37.5]} 22. Re5 {[%clk
0:01:27.7]} 22... Nxa2 {[%clk 0:02:26.4]} 23. Rb1 {[%clk 0:01:15.3]} 23... Nc3
{[%clk 0:02:20.6]} 24. Rb7 {[%clk 0:01:04.3]} 24... Nxa4 {[%clk 0:01:59.6]} 25.
Ra5 {[%clk 0:00:47.2]} 25... Nc3 {[%clk 0:01:46.2]} 26. Raxa7 {[%clk 0:00:34.6]}
26... g6 {[%clk 0:01:45.9]} 27. Re7 {[%clk 0:00:26.7]} 27... Rd8 {[%clk
0:01:30.7]} 28. g4 {[%clk 0:00:21.5]} 28... Nd5 {[%clk 0:01:26.9]} 29. Reb7
{[%clk 0:00:20]} 29... Nf4 {[%clk 0:01:26.9]} 30. Ra3 {[%clk 0:00:15.3]} 30...
Nxd3 {[%clk 0:01:26.4]} 31. Rxd3 {[%clk 0:00:15.4]} 31... c5 {[%clk 0:01:28.1]}
32. Kf2 {[%clk 0:00:10.7]} 32... c4 {[%clk 0:01:29.3]} 33. Rd1 {[%clk
0:00:11.4]} 33... c3 {[%clk 0:01:22.5]} 34. Rc7 {[%clk 0:00:12.2]} 34... Bb3
{[%clk 0:01:10.6]} 35. Rb1 {[%clk 0:00:04.3]} 35... Bc2 {[%clk 0:01:03.9]} 36.
Rbb7 {[%clk 0:00:02.7]} 36... d3 {[%clk 0:00:59.9]} 37. Rd7 {[%clk 0:00:03.9]}
37... Rxd7 {[%clk 0:00:56.1]} 38. Rxd7 {[%clk 0:00:04.5]} 38... d2 {[%clk
0:00:56.3]} 39. Ke2 {[%clk 0:00:05.1]} 39... Kg7 {[%clk 0:00:52]} 40. g5 {[%clk
0:00:06.3]} 40... Kf8 {[%clk 0:00:51]} 41. h4 {[%clk 0:00:06.6]} 41... Ke8
{[%clk 0:00:52.1]} 42. Rd6 {[%clk 0:00:07.1]} 42... Ke7 {[%clk 0:00:53.4]} 43.
Rd4 {[%clk 0:00:08.1]} 43... Ke6 {[%clk 0:00:53.9]} 44. g3 {[%clk 0:00:09]}
44... Ke5 {[%clk 0:00:55]} 45. Rd8 {[%clk 0:00:09.8]} 45... Kf5 {[%clk
0:00:52.5]} 46. Rd4 {[%clk 0:00:09.1]} 46... d1=Q+ {[%clk 0:00:53]} 47. Rxd1
{[%clk 0:00:07.6]} 47... Bxd1+ {[%clk 0:00:54.9]} 0-1

[Event "*** Titled Tuesday 3|2 Blitz"]
[Site "Chess.com"]
[Date "2016.05.03"]
[Round "2"]
[White "Wolverine_master"]
[Black "stuffings101"]
[Result "0-1"]
[WhiteElo "2017"]
[BlackElo "2111"]
[TimeControl "180+2"]
[EndTime "11:22:25 PDT"]
[Termination "stuffings101 won by checkmate"]

1. Nf3 {[%clk 0:03:01.9]} 1... Nf6 {[%clk 0:02:59.9]} 2. g3 {[%clk 0:02:59.9]}
2... g6 {[%clk 0:02:59.7]} 3. Bg2 {[%clk 0:03:00.7]} 3... Bg7 {[%clk 0:02:55]}
4. c4 {[%clk 0:03:01.1]} 4... d6 {[%clk 0:02:56.9]} 5. O-O {[%clk 0:03:01.6]}
5... O-O {[%clk 0:02:58.8]} 6. Nc3 {[%clk 0:03:02.5]} 6... c6 {[%clk 0:02:59.8]}
7. d3 {[%clk 0:03:03.5]} 7... a6 {[%clk 0:02:58.7]} 8. a4 {[%clk 0:02:55.8]}
8... a5 {[%clk 0:02:58.5]} 9. Rb1 {[%clk 0:02:56.2]} 9... Na6 {[%clk 0:03:00]}
10. Bd2 {[%clk 0:02:52.6]} 10... Nd7 {[%clk 0:03:00.1]} 11. Ne1 {[%clk
0:02:52.7]} 11... Ndc5 {[%clk 0:03:00.3]} 12. Nc2 {[%clk 0:02:47.9]} 12... Nb3
{[%clk 0:02:59.6]} 13. Be3 {[%clk 0:02:20.2]} 13... e5 {[%clk 0:02:57.6]} 14. d4
{[%clk 0:02:11]} 14... Bf5 {[%clk 0:02:46.3]} 15. d5 {[%clk 0:01:37.5]} 15...
Qc7 {[%clk 0:02:25.3]} 16. Bd2 {[%clk 0:01:35]} 16... h5 {[%clk 0:02:13.1]} 17.
e4 {[%clk 0:01:35.2]} 17... Bg4 {[%clk 0:02:13.2]} 18. f3 {[%clk 0:01:21.6]}
18... Bd7 {[%clk 0:02:13]} 19. Be3 {[%clk 0:01:15]} 19... f5 {[%clk 0:02:09]}
20. Na3 {[%clk 0:01:14.2]} 20... Nd4 {[%clk 0:02:07.4]} 21. Nc2 {[%clk
0:01:13.7]} 21... Nb3 {[%clk 0:02:03.8]} 22. Na3 {[%clk 0:01:14.2]} 22... Nac5
{[%clk 0:01:56.7]} 23. Bxc5 {[%clk 0:00:43.2]} 23... Nxc5 {[%clk 0:01:55.8]} 24.
b4 {[%clk 0:00:39.9]} 24... axb4 {[%clk 0:01:55]} 25. Rxb4 {[%clk 0:00:40.9]}
25... Qa5 {[%clk 0:01:49.4]} 26. Nc2 {[%clk 0:00:41.6]} 26... Rad8 {[%clk
0:01:36]} 27. Qd2 {[%clk 0:00:21.3]} 27... f4 {[%clk 0:01:34.6]} 28. dxc6 {[%clk
0:00:12.3]} 28... Bxc6 {[%clk 0:01:31.2]} 29. Nd5 {[%clk 0:00:13.1]} 29... Na6
{[%clk 0:01:21.9]} 30. Ne7+ {[%clk 0:00:08.7]} 30... Kh7 {[%clk 0:01:19.7]} 31.
Nxc6 {[%clk 0:00:09]} 31... bxc6 {[%clk 0:01:18.6]} 32. gxf4 {[%clk 0:00:08.7]}
32... exf4 {[%clk 0:01:14.1]} 33. Rfb1 {[%clk 0:00:03.6]} 33... c5 {[%clk
0:01:10.7]} 34. Qd5 {[%clk 0:00:03]} 34... Nxb4 {[%clk 0:01:04.2]} 35. Nxb4
{[%clk 0:00:03.1]} 35... Qxa4 {[%clk 0:01:02.1]} 36. Nc6 {[%clk 0:00:04]} 36...
Rd7 {[%clk 0:00:56.5]} 37. Rb8 {[%clk 0:00:02.6]} 37... Rxb8 {[%clk 0:00:48.4]}
38. Nxb8 {[%clk 0:00:04.5]} 38... Bd4+ {[%clk 0:00:44.5]} 39. Kf1 {[%clk
0:00:03.2]} 39... Qd1# {[%clk 0:00:44.4]} 0-1

[Event "*** Titled Tuesday 3|2 Blitz"]
[Site "Chess.com"]
[Date "2016.05.03"]
[Round "2"]
[White "Quinten94"]
[Black "alturas_pacificas"]
[Result "0-1"]
[WhiteElo "2246"]
[BlackElo "2163"]
[TimeControl "180+2"]
[EndTime "11:22:47 PDT"]
[Termination "alturas_pacificas won by resignation"]

1. e4 {[%clk 0:03:01.9]} 1... e5 {[%clk 0:03:00.6]} 2. Nf3 {[%clk 0:03:02]} 2...
Nf6 {[%clk 0:03:01.2]} 3. Nc3 {[%clk 0:03:01.1]} 3... Nc6 {[%clk 0:03:01.8]} 4.
Bb5 {[%clk 0:03:02.6]} 4... Bb4 {[%clk 0:03:02.7]} 5. O-O {[%clk 0:03:02.4]}
5... d6 {[%clk 0:02:59.2]} 6. d4 {[%clk 0:02:58.8]} 6... Bxc3 {[%clk 0:02:38.3]}
7. bxc3 {[%clk 0:03:00.7]} 7... exd4 {[%clk 0:02:00.9]} 8. cxd4 {[%clk
0:02:59.3]} 8... O-O {[%clk 0:02:01.9]} 9. Re1 {[%clk 0:02:55.4]} 9... h6 {[%clk
0:01:56.4]} 10. h3 {[%clk 0:02:53.6]} 10... Re8 {[%clk 0:01:49.8]} 11. e5 {[%clk
0:02:39.9]} 11... dxe5 {[%clk 0:01:43.8]} 12. dxe5 {[%clk 0:02:40.2]} 12... Qxd1
{[%clk 0:01:42.7]} 13. Rxd1 {[%clk 0:02:40.7]} 13... Ne4 {[%clk 0:01:41.2]} 14.
Be3 {[%clk 0:02:30.7]} 14... Nc3 {[%clk 0:01:29.7]} 15. Bxc6 {[%clk 0:02:31.5]}
15... bxc6 {[%clk 0:01:31.6]} 16. Rd2 {[%clk 0:02:30.3]} 16... Ba6 {[%clk
0:01:04.1]} 17. Rd7 {[%clk 0:02:25.7]} 17... Nd5 {[%clk 0:00:49.8]} 18. Bc5
{[%clk 0:02:26.3]} 18... Bc8 {[%clk 0:00:47.9]} 19. Rxd5 {[%clk 0:02:19.9]}
19... cxd5 {[%clk 0:00:48.6]} 20. Bd4 {[%clk 0:02:02.7]} 20... Bf5 {[%clk
0:00:48.8]} 21. c3 {[%clk 0:02:00.7]} 21... Be4 {[%clk 0:00:45.8]} 22. Nd2
{[%clk 0:02:01]} 22... Bg6 {[%clk 0:00:33.8]} 23. f4 {[%clk 0:01:59.7]} 23... a6
{[%clk 0:00:34.7]} 24. Kf2 {[%clk 0:01:59.5]} 24... Rac8 {[%clk 0:00:32.3]} 25.
Nb3 {[%clk 0:01:58]} 25... Bc2 {[%clk 0:00:31.7]} 26. Nc5 {[%clk 0:01:58.5]}
26... a5 {[%clk 0:00:29.8]} 27. Rc1 {[%clk 0:01:54]} 27... Be4 {[%clk
0:00:31.1]} 28. g4 {[%clk 0:01:54.1]} 28... Rb8 {[%clk 0:00:29.2]} 29. Ke3
{[%clk 0:01:52.4]} 29... Bg2 {[%clk 0:00:29.3]} 30. Kf2 {[%clk 0:01:43.5]} 30...
Rb2+ {[%clk 0:00:28.1]} 31. Kg3 {[%clk 0:01:44.6]} 31... Be4 {[%clk 0:00:27.9]}
32. a4 {[%clk 0:01:38.7]} 32... g5 {[%clk 0:00:27]} 33. Nxe4 {[%clk 0:01:35.2]}
33... dxe4 {[%clk 0:00:28.2]} 34. f5 {[%clk 0:01:34.1]} 34... Ra2 {[%clk
0:00:26]} 35. h4 {[%clk 0:01:30.2]} 35... Rxa4 {[%clk 0:00:21.8]} 36. hxg5
{[%clk 0:01:30.8]} 36... hxg5 {[%clk 0:00:22.3]} 37. Kf2 {[%clk 0:01:31.6]}
37... c5 {[%clk 0:00:21.6]} 38. Bxc5 {[%clk 0:01:31.8]} 38... Rxe5 {[%clk
0:00:23.2]} 39. Bd4 {[%clk 0:01:31.5]} 39... Rd5 {[%clk 0:00:21.6]} 40. Ke3
{[%clk 0:01:31.4]} 40... Ra2 {[%clk 0:00:19.6]} 41. Rb1 {[%clk 0:01:22.3]} 41...
Kf8 {[%clk 0:00:16.1]} 42. Bf6 {[%clk 0:01:16.8]} 42... Ke8 {[%clk 0:00:16.4]}
43. Kxe4 {[%clk 0:01:08.5]} 43... Rdd2 {[%clk 0:00:17.5]} 44. Bxg5 {[%clk
0:01:03.1]} 44... Re2+ {[%clk 0:00:17.5]} 45. Kf4 {[%clk 0:01:04.3]} 45... a4
{[%clk 0:00:18.3]} 46. Kf3 {[%clk 0:00:55.6]} 46... a3 {[%clk 0:00:18.9]} 47.
Rd1 {[%clk 0:00:52.5]} 47... f6 {[%clk 0:00:19.3]} 48. Bxf6 {[%clk 0:00:52.1]}
48... Red2 {[%clk 0:00:20]} 49. Re1+ {[%clk 0:00:52.5]} 49... Kd7 {[%clk
0:00:20.1]} 50. Re7+ {[%clk 0:00:50.7]} 50... Kd6 {[%clk 0:00:20.6]} 51. g5
{[%clk 0:00:52.4]} 51... Rf2+ {[%clk 0:00:20.9]} 52. Kg4 {[%clk 0:00:53.3]}
52... Rg2+ {[%clk 0:00:22]} 53. Kh5 {[%clk 0:00:53.9]} 53... Rae2 {[%clk
0:00:21.4]} 54. Kg6 {[%clk 0:00:55]} 54... Rxe7 {[%clk 0:00:21.7]} 0-1

[Event "*** Titled Tuesday 3|2 Blitz"]
[Site "Chess.com"]
[Date "2016.05.03"]
[Round "2"]
[White "Rickstereo"]
[Black "cabalista"]
[Result "1-0"]
[WhiteElo "2193"]
[BlackElo "2348"]
[TimeControl "180+2"]
[EndTime "11:22:51 PDT"]
[Termination "Rickstereo won by resignation"]

1. c4 {[%clk 0:03:01.9]} 1... g6 {[%clk 0:02:50]} 2. g3 {[%clk 0:03:02.5]} 2...
Bg7 {[%clk 0:02:46.5]} 3. Bg2 {[%clk 0:03:03.4]} 3... d6 {[%clk 0:02:46.9]} 4.
Nc3 {[%clk 0:03:01.3]} 4... e5 {[%clk 0:02:47.3]} 5. e4 {[%clk 0:02:58.9]} 5...
Nf6 {[%clk 0:02:46.9]} 6. Nge2 {[%clk 0:02:59.8]} 6... O-O {[%clk 0:02:48.8]} 7.
O-O {[%clk 0:03:00.7]} 7... c6 {[%clk 0:02:49.7]} 8. d3 {[%clk 0:03:01.6]} 8...
a5 {[%clk 0:02:51.1]} 9. h3 {[%clk 0:02:51.8]} 9... Na6 {[%clk 0:02:53]} 10. Be3
{[%clk 0:02:52.8]} 10... Rb8 {[%clk 0:02:54.5]} 11. d4 {[%clk 0:02:52.1]} 11...
Nd7 {[%clk 0:02:40.1]} 12. Rc1 {[%clk 0:02:37.3]} 12... exd4 {[%clk 0:02:32.3]}
13. Nxd4 {[%clk 0:02:33.4]} 13... Ndc5 {[%clk 0:02:32.6]} 14. Re1 {[%clk
0:02:23.7]} 14... Re8 {[%clk 0:02:29.7]} 15. Bf4 {[%clk 0:01:58.6]} 15... Nb4
{[%clk 0:02:24.1]} 16. Bf1 {[%clk 0:01:43.6]} 16... Nbd3 {[%clk 0:02:13.1]} 17.
Bxd3 {[%clk 0:01:30.7]} 17... Bxd4 {[%clk 0:02:12.6]} 18. Bf1 {[%clk 0:01:29.7]}
18... Qf6 {[%clk 0:01:34.4]} 19. Bg2 {[%clk 0:00:53.9]} 19... Ra8 {[%clk
0:01:26.5]} 20. Qd2 {[%clk 0:00:47.8]} 20... Ne6 {[%clk 0:01:24]} 21. Bxd6
{[%clk 0:00:42.8]} 21... Ng5 {[%clk 0:01:10.6]} 22. e5 {[%clk 0:00:40.1]} 22...
Bxe5 {[%clk 0:00:47.2]} 23. Rxe5 {[%clk 0:00:27.4]} 23... Rxe5 {[%clk
0:00:46.9]} 24. f4 {[%clk 0:00:28.4]} 24... Re6 {[%clk 0:00:47]} 25. Bc5 {[%clk
0:00:10.2]} 25... Nxh3+ {[%clk 0:00:45.3]} 26. Bxh3 {[%clk 0:00:08.2]} 26... Re8
{[%clk 0:00:44.5]} 27. Bg2 {[%clk 0:00:08.4]} 27... Bf5 {[%clk 0:00:43.2]} 28.
Qf2 {[%clk 0:00:08]} 28... Rad8 {[%clk 0:00:40.8]} 29. Bb6 {[%clk 0:00:09.2]}
29... Rd3 {[%clk 0:00:40.5]} 30. Bf1 {[%clk 0:00:09.5]} 30... Rd7 {[%clk
0:00:38.5]} 31. Be3 {[%clk 0:00:09.5]} 31... h5 {[%clk 0:00:36.7]} 32. Re1
{[%clk 0:00:10]} 32... Rde7 {[%clk 0:00:21.8]} 33. Bd4 {[%clk 0:00:09.2]} 33...
Rxe1 {[%clk 0:00:22.2]} 34. Bxf6 {[%clk 0:00:07.6]} 34... Be4 {[%clk 0:00:22.9]}
35. Qxe1 {[%clk 0:00:07.5]} 35... Re6 {[%clk 0:00:20.5]} 36. Nxe4 {[%clk
0:00:08.7]} 36... h4 {[%clk 0:00:19.6]} 37. Qd2 {[%clk 0:00:09.5]} 37... Re8
{[%clk 0:00:19.1]} 38. Qd6 {[%clk 0:00:10.1]} 38... hxg3 {[%clk 0:00:19.3]} 39.
Ng5 {[%clk 0:00:11.3]} 39... Rf8 {[%clk 0:00:18.7]} 40. Be7 {[%clk 0:00:11.8]}
1-0

[Event "*** Titled Tuesday 3|2 Blitz"]
[Site "Chess.com"]
[Date "2016.05.03"]
[Round "2"]
[White "pedromartinez91"]
[Black "APL2001"]
[Result "1-0"]
[WhiteElo "2342"]
[BlackElo "2161"]
[TimeControl "180+2"]
[EndTime "11:23:00 PDT"]
[Termination "pedromartinez91 won on time"]

1. c4 {[%clk 0:03:01.9]} 1... Nf6 {[%clk 0:02:59.8]} 2. Nc3 {[%clk 0:03:02.1]}
2... g6 {[%clk 0:03:00.6]} 3. g3 {[%clk 0:03:01.3]} 3... Bg7 {[%clk 0:02:54.1]}
4. Bg2 {[%clk 0:03:01.9]} 4... d6 {[%clk 0:02:55.4]} 5. d4 {[%clk 0:03:01.2]}
5... O-O {[%clk 0:02:56.3]} 6. Nf3 {[%clk 0:03:01.6]} 6... Nc6 {[%clk
0:02:55.7]} 7. O-O {[%clk 0:03:01.6]} 7... Bf5 {[%clk 0:02:56.1]} 8. Nh4 {[%clk
0:02:53.5]} 8... Bd7 {[%clk 0:02:49.2]} 9. f4 {[%clk 0:02:53.8]} 9... e5 {[%clk
0:02:25.3]} 10. d5 {[%clk 0:02:48.2]} 10... Ne7 {[%clk 0:02:21.2]} 11. e4 {[%clk
0:02:45.7]} 11... Bg4 {[%clk 0:01:47.8]} 12. Qd3 {[%clk 0:02:38.4]} 12... Bd7
{[%clk 0:01:20.6]} 13. f5 {[%clk 0:02:21.4]} 13... Kh8 {[%clk 0:01:07.9]} 14. h3
{[%clk 0:02:21.1]} 14... gxf5 {[%clk 0:01:03.9]} 15. exf5 {[%clk 0:02:20]} 15...
c6 {[%clk 0:01:05.2]} 16. g4 {[%clk 0:02:17.3]} 16... h6 {[%clk 0:01:02.2]} 17.
Be3 {[%clk 0:02:10.1]} 17... cxd5 {[%clk 0:01:02.1]} 18. cxd5 {[%clk 0:02:10.3]}
18... a6 {[%clk 0:00:53.8]} 19. Qd2 {[%clk 0:01:44.5]} 19... Neg8 {[%clk
0:00:54.1]} 20. Nf3 {[%clk 0:01:30.6]} 20... b5 {[%clk 0:00:50.7]} 21. a3 {[%clk
0:01:29.1]} 21... a5 {[%clk 0:00:50.9]} 22. g5 {[%clk 0:01:24]} 22... hxg5
{[%clk 0:00:51.9]} 23. Nxg5 {[%clk 0:01:24.7]} 23... b4 {[%clk 0:00:51.3]} 24.
Nce4 {[%clk 0:01:25.2]} 24... Nxe4 {[%clk 0:00:51.5]} 25. Bxe4 {[%clk
0:01:25.4]} 25... Nf6 {[%clk 0:00:50.2]} 26. Qf2 {[%clk 0:01:25.1]} 26... Kg8
{[%clk 0:00:20]} 27. Qh4 {[%clk 0:01:23.2]} 27... bxa3 {[%clk 0:00:18.9]} 28.
bxa3 {[%clk 0:01:20.2]} 28... Rb8 {[%clk 0:00:17.3]} 29. Ra2 {[%clk 0:01:20.2]}
29... Rb3 {[%clk 0:00:12.4]} 30. Rf3 {[%clk 0:01:09.1]} 30... Rxe3 {[%clk
0:00:11.2]} 31. Rxe3 {[%clk 0:01:09]} 31... Qb6 {[%clk 0:00:12.3]} 32. Re2
{[%clk 0:01:01.4]} 32... Rc8 {[%clk 0:00:12.9]} 33. Kh2 {[%clk 0:01:00.2]} 33...
Rc1 {[%clk 0:00:13.2]} 34. Rg3 {[%clk 0:00:53.8]} 34... Kf8 {[%clk 0:00:12.6]}
35. Nh7+ {[%clk 0:00:53.6]} 35... Nxh7 {[%clk 0:00:12.6]} 36. Qxh7 {[%clk
0:00:53.9]} 36... Bf6 {[%clk 0:00:12.4]} 37. Bf3 {[%clk 0:00:42.7]} 37... Ke7
{[%clk 0:00:12.5]} 38. Bh5 {[%clk 0:00:41.9]} 38... Be8 {[%clk 0:00:13.6]} 39.
Rg8 {[%clk 0:00:41.9]} 39... Qb8 {[%clk 0:00:09.8]} 40. Reg2 {[%clk 0:00:40]}
40... e4 {[%clk 0:00:07.8]} 41. h4 {[%clk 0:00:38.3]} 41... Be5+ {[%clk
0:00:08.9]} 42. Kh3 {[%clk 0:00:39.5]} 42... Rh1+ {[%clk 0:00:09.4]} 43. Kg4
{[%clk 0:00:38.8]} 43... Qc8 {[%clk 0:00:08]} 44. Bxf7 {[%clk 0:00:36.3]} 1-0

[Event "*** Titled Tuesday 3|2 Blitz"]
[Site "Chess.com"]
[Date "2016.05.03"]
[Round "2"]
[White "wonderfultime"]
[Black "SmoothAsAHedgehog"]
[Result "1/2-1/2"]
[WhiteElo "2606"]
[BlackElo "2533"]
[TimeControl "180+2"]
[EndTime "11:23:18 PDT"]
[Termination "Game drawn by agreement"]

1. d4 {[%clk 0:02:52.9]} 1... Nf6 {[%clk 0:02:59.9]} 2. c4 {[%clk 0:02:54]} 2...
e6 {[%clk 0:02:58.4]} 3. Nf3 {[%clk 0:02:54.6]} 3... Bb4+ {[%clk 0:02:57.9]} 4.
Nbd2 {[%clk 0:02:55.7]} 4... b6 {[%clk 0:02:52.7]} 5. a3 {[%clk 0:02:56.7]} 5...
Bxd2+ {[%clk 0:02:50.3]} 6. Qxd2 {[%clk 0:02:58.6]} 6... Bb7 {[%clk 0:02:51.1]}
7. e3 {[%clk 0:03:00]} 7... d6 {[%clk 0:02:52.6]} 8. Be2 {[%clk 0:03:01.1]} 8...
Nbd7 {[%clk 0:02:54.2]} 9. O-O {[%clk 0:03:02.4]} 9... O-O {[%clk 0:02:54]} 10.
b4 {[%clk 0:03:03.7]} 10... a5 {[%clk 0:02:55.4]} 11. Bb2 {[%clk 0:03:04.7]}
11... Qe7 {[%clk 0:02:56.8]} 12. Qc2 {[%clk 0:03:04.5]} 12... Be4 {[%clk
0:02:56.2]} 13. Qb3 {[%clk 0:03:03]} 13... e5 {[%clk 0:02:44.1]} 14. Rfc1 {[%clk
0:02:53.9]} 14... Rfb8 {[%clk 0:02:20.7]} 15. Nd2 {[%clk 0:02:40.3]} 15... Bg6
{[%clk 0:02:15]} 16. Bf3 {[%clk 0:02:27]} 16... e4 {[%clk 0:02:05.7]} 17. Be2
{[%clk 0:02:28.2]} 17... h5 {[%clk 0:02:06.6]} 18. Qc2 {[%clk 0:02:24.1]} 18...
Re8 {[%clk 0:02:05.2]} 19. c5 {[%clk 0:02:24.8]} 19... axb4 {[%clk 0:01:57]} 20.
axb4 {[%clk 0:02:25.9]} 20... bxc5 {[%clk 0:01:56.8]} 21. dxc5 {[%clk
0:02:22.7]} 21... dxc5 {[%clk 0:01:53.4]} 22. bxc5 {[%clk 0:02:23.6]} 22... Ne5
{[%clk 0:01:53]} 23. Bd4 {[%clk 0:01:58.2]} 23... Nc6 {[%clk 0:01:44.2]} 24. Bb2
{[%clk 0:01:46.9]} 24... Nb4 {[%clk 0:01:38.9]} 25. Qc4 {[%clk 0:01:34.1]} 25...
Nd3 {[%clk 0:01:31.2]} 26. Bxd3 {[%clk 0:01:35.4]} 26... exd3 {[%clk 0:01:33.1]}
27. c6 {[%clk 0:01:29.3]} 27... Ng4 {[%clk 0:01:05.5]} 28. Qd4 {[%clk
0:01:20.6]} 28... f6 {[%clk 0:01:06.1]} 29. h3 {[%clk 0:01:17.7]} 29... Ne5
{[%clk 0:01:06.7]} 30. Qd5+ {[%clk 0:01:03.5]} 30... Bf7 {[%clk 0:01:04.9]} 31.
Qe4 {[%clk 0:01:01.9]} 31... Bg6 {[%clk 0:01:02.1]} 32. Qf4 {[%clk 0:01:00.8]}
32... Rxa1 {[%clk 0:00:59.4]} 33. Bxa1 {[%clk 0:00:55.6]} 33... Ra8 {[%clk
0:00:54.2]} 34. Qd4 {[%clk 0:00:47.5]} 34... Kh7 {[%clk 0:00:53.6]} 35. f4
{[%clk 0:00:46.3]} 35... Nf7 {[%clk 0:00:48.9]} 36. e4 {[%clk 0:00:46.5]} 36...
Rd8 {[%clk 0:00:47.7]} 37. Qe3 {[%clk 0:00:45.6]} 37... Nd6 {[%clk 0:00:46.7]}
38. e5 {[%clk 0:00:45.9]} 38... fxe5 {[%clk 0:00:46.3]} 39. Qxe5 {[%clk
0:00:42.7]} 39... Qxe5 {[%clk 0:00:37.9]} 40. Bxe5 {[%clk 0:00:44.6]} 40... Ne4
{[%clk 0:00:16.5]} 41. Rd1 {[%clk 0:00:18.3]} 41... Nxd2 {[%clk 0:00:14.4]} 42.
Rxd2 {[%clk 0:00:19.5]} 42... Rd5 {[%clk 0:00:15.9]} 43. Kf2 {[%clk 0:00:17.9]}
43... Rc5 {[%clk 0:00:15.4]} 44. Bxc7 {[%clk 0:00:19.1]} 44... Rxc6 {[%clk
0:00:16.6]} 45. Be5 {[%clk 0:00:20.6]} 45... h4 {[%clk 0:00:14.9]} 46. Ke3
{[%clk 0:00:21.4]} 46... Bf5 {[%clk 0:00:15.8]} 47. Ra2 {[%clk 0:00:16.6]} 47...
Rc2 {[%clk 0:00:16.4]} 48. Rxc2 {[%clk 0:00:10.9]} 48... dxc2 {[%clk 0:00:17.3]}
49. Bb2 {[%clk 0:00:12.8]} 49... Kh6 {[%clk 0:00:13.9]} 50. Kf2 {[%clk
0:00:13.9]} 50... g5 {[%clk 0:00:13.5]} 51. fxg5+ {[%clk 0:00:13.6]} 51... Kxg5
{[%clk 0:00:15.4]} 52. g3 {[%clk 0:00:15.5]} 52... hxg3+ {[%clk 0:00:16.2]} 53.
Kxg3 {[%clk 0:00:16.5]} 1/2-1/2